fUST/lending_fUST_20240218
["ID","MTS","AMOUNT","RATE_DAILY","PERIOD"]
[314336346,1708194640206,-500.0,0.0002767,2]
[314336348,1708194640215,-500.0,0.0002767,2]
[314336349,1708194640225,-567.3,0.00027671,2]
[314336350,1708194640234,-557.12,0.00027671,2]
[314336351,1708194640243,-180.02940569,0.00027799,2]
[314336352,1708194640253,-317.05249301,0.000278,2]
[314336353,1708194640262,-200.0,0.00027873,2]
[314336354,1708194640271,-4203.52,0.00027933,3]
[314336355,1708194640280,-3502.94,0.00027933,3]
[314336356,1708194640290,-2919.11,0.00027933,3]
[314336357,1708194640299,-370.36,0.00027934,3]
[314336358,1708194640308,-500.0,0.00027943,2]
[314336359,1708194640318,-3638.05,0.00027943,2]
[314336360,1708194640327,-5192.33,0.00027943,2]
[314336361,1708194640336,-1051.52,0.00027943,2]
[314336362,1708194640345,-500.0,0.00027943,2]
[314336363,1708194640354,-500.0,0.00027943,2]
[314336364,1708194640364,-500.0,0.00027943,2]
[314336365,1708194640374,-500.0,0.00027943,2]
[314336366,1708194640383,-917.73,0.00027943,2]
[314336367,1708194640392,-500.0,0.00027943,2]
[314336368,1708194640402,-172.37079063,0.00027943,2]
[314336385,1708194643366,-180.02940569,0.00027668,2]
[314336386,1708194643376,-2432.59,0.00027933,3]
[314336387,1708194643386,-599.71920937,0.00027943,2]
[314336388,1708194643396,-2701.75,0.00027943,2]
[314336389,1708194643407,-546.99,0.00027943,2]
[314336390,1708194643417,-3552.4,0.00027943,2]
[314336391,1708194643427,-4818.7,0.00027943,2]
[314336392,1708194643437,-805.06,0.00027943,2]
[314336393,1708194643446,-500.0,0.00027943,2]
[314336394,1708194643456,-663.69,0.00027943,2]
[314336395,1708194643465,-500.0,0.00027943,2]
[314336396,1708194643475,-590.21,0.00027943,2]
[314336397,1708194643484,-500.27,0.00027943,2]
[314336398,1708194643494,-500.0,0.00027943,2]
[314336399,1708194643503,-500.0,0.00027944,2]
[314336400,1708194643513,-1014.71,0.00027944,2]
[314336401,1708194643526,-500.0,0.00027944,2]
[314336402,1708194643536,-516.61,0.00027944,2]
[314336403,1708194643546,-182.64307601,0.00027944,2]
[314336404,1708194643555,-3541.77,0.00027944,2]
[314336405,1708194643565,-2996.24,0.00027944,2]
[314336406,1708194643574,-500.0,0.00027944,2]
[314336407,1708194643583,-500.0,0.00027944,2]
[314336408,1708194643592,-500.0,0.00027944,2]
[314336409,1708194643602,-500.0,0.00027944,2]
[314336410,1708194643611,-567.3,0.00027945,2]
[314336411,1708194643621,-557.12,0.00027945,2]
[314336412,1708194643630,-510.31723071,0.00028,2]
[314336413,1708194643639,-154.9690062,0.00028216,2]
[314336414,1708194643648,-500.0,0.00028217,2]
[314336415,1708194643659,-3638.05,0.00028217,2]
[314336416,1708194643669,-5192.33,0.00028217,2]
[314336417,1708194643678,-1051.52,0.00028217,2]
[314336418,1708194643687,-500.0,0.00028217,2]
[314336419,1708194643696,-500.0,0.00028217,2]
[314336420,1708194643706,-500.0,0.00028217,2]
[314336421,1708194643715,-500.0,0.00028217,2]
[314336422,1708194643725,-917.73,0.00028217,2]
[314336423,1708194643734,-500.0,0.00028217,2]
[314336424,1708194643743,-772.09,0.00028217,2]
[314336425,1708194643752,-2701.75,0.00028217,2]
[314336426,1708194643761,-546.99,0.00028217,2]
[314336427,1708194643771,-3552.4,0.00028217,2]
[314336428,1708194643780,-4818.7,0.00028217,2]
[314336429,1708194643790,-805.06,0.00028217,2]
[314336430,1708194643799,-500.0,0.00028217,2]
[314336431,1708194643807,-663.69,0.00028217,2]
[314336432,1708194643817,-500.0,0.00028217,2]
[314336433,1708194643826,-590.21,0.00028217,2]
[314336434,1708194643835,-500.27,0.00028217,2]
[314336435,1708194643843,-500.0,0.00028217,2]
[314336436,1708194643852,-500.0,0.00028218,2]
[314336437,1708194643861,-1014.71,0.00028218,2]
[314336438,1708194643871,-606.19323371,0.00028218,2]
[314336439,1708194643880,-516.61,0.00028218,2]
[314336440,1708194643889,-3541.77,0.00028218,2]
[314336441,1708194643899,-2996.24,0.00028218,2]
[314336442,1708194643910,-500.0,0.00028218,2]
[314336443,1708194643920,-500.0,0.00028218,2]
[314336444,1708194643929,-500.0,0.00028218,2]
[314336445,1708194643938,-500.0,0.00028218,2]
[314336446,1708194643947,-567.3,0.00028219,2]
[314336447,1708194643956,-557.12,0.00028219,2]
[314336448,1708194643966,-200.0,0.00028373,2]
[314336449,1708194643975,-500.0,0.00028491,2]
[314336450,1708194643985,-3638.05,0.00028491,2]
[314336451,1708194643994,-5192.33,0.00028491,2]
[314336452,1708194644003,-1051.52,0.00028491,2]
[314336453,1708194644012,-500.0,0.00028491,2]
[314336454,1708194644021,-500.0,0.00028491,2]
[314336455,1708194644030,-500.0,0.00028491,2]
[314336456,1708194644040,-917.73,0.00028491,2]
[314336457,1708194644049,-500.0,0.00028491,2]
[314336458,1708194644058,-772.09,0.00028491,2]
[314336459,1708194644068,-2701.75,0.00028491,2]
[314336460,1708194644077,-546.99,0.00028491,2]
[314336461,1708194644086,-3552.4,0.00028491,2]
[314336462,1708194644095,-4818.7,0.00028491,2]
[314336463,1708194644105,-805.06,0.00028491,2]
[314336464,1708194644114,-500.0,0.00028491,2]
[314336465,1708194644124,-663.69,0.00028491,2]
[314336466,1708194644133,-500.0,0.00028491,2]
[314336467,1708194644142,-590.21,0.00028491,2]
[314336468,1708194644153,-500.27,0.00028491,2]
[314336469,1708194644163,-500.0,0.00028491,2]
[314336470,1708194644173,-500.0,0.00028492,2]
[314336471,1708194644182,-1014.71,0.00028492,2]
[314336472,1708194644191,-516.61,0.00028492,2]
[314336473,1708194644200,-3541.77,0.00028492,2]
[314336474,1708194644209,-2996.24,0.00028492,2]
[314336475,1708194644218,-500.0,0.00028492,2]
[314336476,1708194644228,-500.0,0.00028492,2]
[314336477,1708194644237,-500.0,0.00028492,2]
[314336478,1708194644246,-500.0,0.00028492,2]
[314336479,1708194644256,-567.3,0.00028493,2]
[314336480,1708194644265,-557.12,0.00028493,2]
[314336481,1708194644274,-200.0,0.00028573,2]
[314336482,1708194644283,-500.0,0.00028765,2]
[314336483,1708194644293,-3638.05,0.00028765,2]
[314336484,1708194644302,-5192.33,0.00028765,2]
[314336485,1708194644311,-1051.52,0.00028765,2]
[314336486,1708194644321,-320.49977444,0.00028765,2]
[314336487,1708194644330,-500.0,0.00028765,2]
[314336488,1708194644339,-500.0,0.00028765,2]
[314336489,1708194644349,-917.73,0.00028765,2]
[314336490,1708194644358,-500.0,0.00028765,2]
[314336491,1708194644367,-772.09,0.00028765,2]
[314336492,1708194644379,-2701.75,0.00028765,2]
[314336493,1708194644388,-546.99,0.00028765,2]
[314336494,1708194644397,-3552.4,0.00028765,2]
[314336495,1708194644406,-4818.7,0.00028765,2]
[314336496,1708194644417,-805.06,0.00028765,2]
[314336497,1708194644426,-500.0,0.00028765,2]
[314336498,1708194644435,-663.69,0.00028765,2]
[314336499,1708194644445,-500.0,0.00028765,2]
[314336500,1708194644454,-590.21,0.00028765,2]
[314336501,1708194644464,-500.27,0.00028765,2]
[314336502,1708194644558,-500.0,0.00028765,2]
[314336503,1708194644569,-500.0,0.00028766,2]
[314336504,1708194644578,-1014.71,0.00028766,2]
[314336505,1708194644587,-516.61,0.00028766,2]
[314336506,1708194644597,-3541.77,0.00028766,2]
[314336507,1708194644608,-2996.24,0.00028766,2]
[314336508,1708194644617,-500.0,0.00028766,2]
[314336509,1708194644627,-500.0,0.00028766,2]
[314336510,1708194644636,-500.0,0.00028766,2]
[314336511,1708194644645,-500.0,0.00028766,2]
[314336512,1708194644656,-567.3,0.00028767,2]
[314336513,1708194644665,-557.12,0.00028767,2]
[314336514,1708194644674,-153.0,0.00028767,2]
[314336515,1708194644683,-200.0,0.00028873,2]
[314336516,1708194644693,-500.0,0.00029039,2]
[314336517,1708194644702,-3638.05,0.00029039,2]
[314336518,1708194644711,-5192.33,0.00029039,2]
[314336519,1708194644720,-1051.52,0.00029039,2]
[314336520,1708194644730,-500.0,0.00029039,2]
[314336521,1708194644741,-500.0,0.00029039,2]
[314336522,1708194644750,-917.73,0.00029039,2]
[314336523,1708194644759,-500.0,0.00029039,2]
[314336524,1708194644769,-772.09,0.00029039,2]
[314336525,1708194644778,-2701.75,0.00029039,2]
[314336526,1708194644788,-546.99,0.00029039,2]
[314336527,1708194644797,-3552.4,0.00029039,2]
[314336528,1708194644807,-4818.7,0.00029039,2]
[314336529,1708194644817,-805.06,0.00029039,2]
[314336530,1708194644826,-500.0,0.00029039,2]
[314336531,1708194644835,-663.69,0.00029039,2]
[314336532,1708194644845,-500.0,0.00029039,2]
[314336533,1708194644854,-590.21,0.00029039,2]
[314336534,1708194644863,-500.27,0.00029039,2]
[314336535,1708194644872,-500.0,0.00029039,2]
[314336536,1708194644881,-500.0,0.0002904,2]
[314336537,1708194644890,-1014.71,0.0002904,2]
[314336538,1708194644899,-516.61,0.0002904,2]
[314336539,1708194644908,-3541.77,0.0002904,2]
[314336540,1708194644917,-2996.24,0.0002904,2]
[314336541,1708194644927,-500.0,0.0002904,2]
[314336542,1708194644936,-500.0,0.0002904,2]
[314336543,1708194644945,-500.0,0.0002904,2]
[314336544,1708194644954,-500.0,0.0002904,2]
[314336545,1708194644963,-567.3,0.00029041,2]
[314336546,1708194644972,-557.12,0.00029041,2]
[314336547,1708194644982,-153.0,0.00029041,2]
[314336548,1708194644991,-153.0,0.00029041,2]
[314336549,1708194645001,-500.0,0.00029313,2]
[314336550,1708194645010,-3638.05,0.00029313,2]
[314336551,1708194645019,-5192.33,0.00029313,2]
[314336552,1708194645027,-1051.52,0.00029313,2]
[314336553,1708194645037,-500.0,0.00029313,2]
[314336554,1708194645047,-500.0,0.00029313,2]
[314336555,1708194645056,-917.73,0.00029313,2]
[314336556,1708194645065,-500.0,0.00029313,2]
[314336557,1708194645075,-772.09,0.00029313,2]
[314336558,1708194645084,-2701.75,0.00029313,2]
[314336559,1708194645094,-546.99,0.00029313,2]
[314336560,1708194645102,-3552.4,0.00029313,2]
[314336561,1708194645111,-4818.7,0.00029313,2]
[314336562,1708194645120,-805.06,0.00029313,2]
[314336563,1708194645129,-500.0,0.00029313,2]
[314336564,1708194645138,-663.69,0.00029313,2]
[314336565,1708194645148,-500.0,0.00029313,2]
[314336566,1708194645158,-590.21,0.00029313,2]
[314336567,1708194645167,-500.27,0.00029313,2]
[314336568,1708194645176,-500.0,0.00029313,2]
[314336569,1708194645185,-500.0,0.00029314,2]
[314336571,1708194645195,-1014.71,0.00029314,2]
[314336572,1708194645204,-516.61,0.00029314,2]
[314336573,1708194645213,-3541.77,0.00029314,2]
[314336574,1708194645222,-2996.24,0.00029314,2]
[314336575,1708194645233,-500.0,0.00029314,2]
[314336576,1708194645242,-500.0,0.00029314,2]
[314336577,1708194645252,-500.0,0.00029314,2]
[314336578,1708194645261,-500.0,0.00029314,2]
[314336579,1708194645271,-567.3,0.00029315,2]
[314336580,1708194645281,-557.12,0.00029315,2]
[314336581,1708194645290,-200.0,0.00029373,2]
[314336582,1708194645299,-200.0,0.00029573,2]
[314336583,1708194645309,-500.0,0.00029587,2]
[314336584,1708194645319,-3638.05,0.00029587,2]
[314336585,1708194645328,-5192.33,0.00029587,2]
[314336586,1708194645337,-1051.52,0.00029587,2]
[314336587,1708194645347,-633.21764016,0.00029587,2]
[314336588,1708194645356,-500.0,0.00029587,2]
[314336589,1708194645365,-917.73,0.00029587,2]
[314336590,1708194645374,-500.0,0.00029587,2]
[314336591,1708194645384,-772.09,0.00029587,2]
[314336592,1708194645394,-2701.75,0.00029587,2]
[314336593,1708194645403,-546.99,0.00029587,2]
[314336594,1708194645414,-3552.4,0.00029587,2]
[314336595,1708194645423,-4818.7,0.00029587,2]
[314336596,1708194645432,-805.06,0.00029587,2]
[314336597,1708194645442,-500.0,0.00029587,2]
[314336598,1708194645451,-663.69,0.00029587,2]
[314336599,1708194645461,-500.0,0.00029587,2]
[314336600,1708194645470,-590.21,0.00029587,2]
[314336601,1708194645480,-500.27,0.00029587,2]
[314336602,1708194645489,-500.0,0.00029587,2]
[314336603,1708194645499,-500.0,0.00029588,2]
[314336604,1708194645508,-1014.71,0.00029588,2]
[314336605,1708194645518,-516.61,0.00029588,2]
[314336606,1708194645528,-3541.77,0.00029588,2]
[314336607,1708194645541,-2996.24,0.00029588,2]
[314336608,1708194645550,-500.0,0.00029588,2]
[314336609,1708194645559,-500.0,0.00029588,2]
[314336610,1708194645568,-500.0,0.00029588,2]
[314336611,1708194645578,-500.0,0.00029588,2]
[314336612,1708194645587,-567.3,0.00029589,2]
[314336613,1708194645596,-557.12,0.00029589,2]
[314336614,1708194645606,-153.0,0.00029589,2]
[314336615,1708194645617,-153.0,0.00029589,2]
[314336616,1708194645627,-153.0,0.00029589,2]
[314336617,1708194645636,-306.0,0.00029589,2]
[314336618,1708194645645,-153.0,0.00029589,2]
[314336619,1708194645656,-306.0,0.00029589,2]
[314336620,1708194645665,-153.0,0.00029589,2]
[314336621,1708194645674,-306.0,0.00029589,2]
[314336622,1708194645683,-153.0,0.00029589,2]
[314336623,1708194645693,-306.0,0.00029589,2]
[314336624,1708194645703,-153.0,0.00029589,2]
[314336625,1708194645712,-153.0,0.00029589,2]
[314336626,1708194645722,-216.5790776,0.00029589,2]
[314336627,1708194645730,-150.0,0.00029683,2]
[314336628,1708194645739,-500.0,0.00029861,2]
[314336629,1708194645749,-3638.05,0.00029861,2]
[314336630,1708194645758,-5192.33,0.00029861,2]
[314336631,1708194645766,-1051.52,0.00029861,2]
[314336632,1708194645776,-500.0,0.00029861,2]
[314336633,1708194645785,-917.73,0.00029861,2]
[314336634,1708194645794,-500.0,0.00029861,2]
[314336635,1708194645804,-772.09,0.00029861,2]
[314336636,1708194645813,-2701.75,0.00029861,2]
[314336637,1708194645821,-546.99,0.00029861,2]
[314336638,1708194645830,-3552.4,0.00029861,2]
[314336639,1708194645839,-4818.7,0.00029861,2]
[314336640,1708194645849,-805.06,0.00029861,2]
[314336641,1708194645858,-500.0,0.00029861,2]
[314336642,1708194645867,-663.69,0.00029861,2]
[314336643,1708194645877,-500.0,0.00029861,2]
[314336644,1708194645886,-590.21,0.00029861,2]
[314336645,1708194645895,-500.27,0.00029861,2]
[314336646,1708194645906,-500.0,0.00029861,2]
[314336647,1708194645914,-500.0,0.00029862,2]
[314336648,1708194645924,-1014.71,0.00029862,2]
[314336649,1708194645933,-516.61,0.00029862,2]
[314336650,1708194645942,-3541.77,0.00029862,2]
[314336651,1708194645952,-2996.24,0.00029862,2]
[314336652,1708194645961,-500.0,0.00029862,2]
[314336653,1708194645970,-500.0,0.00029862,2]
[314336654,1708194645979,-500.0,0.00029862,2]
[314336655,1708194645989,-500.0,0.00029862,2]
[314336656,1708194645998,-567.3,0.00029863,2]
[314336657,1708194646007,-557.12,0.00029863,2]
[314336658,1708194646016,-200.0,0.00029873,2]
[314336659,1708194646025,-225.71429945,0.000299,7]
[314336660,1708194646034,-265.50745799,0.000299,7]
[314336661,1708194646045,-351.231169,0.000299,5]
[314336662,1708194646054,-937.8889909,0.000299,7]
[314336663,1708194646063,-196.95668809,0.000299,7]
[314336664,1708194646072,-293.57973082,0.000299,5]
[314336665,1708194646081,-1373.27271463,0.000299,7]
[314336666,1708194646090,-519.10330331,0.000299,5]
[314336667,1708194646100,-1000.0,0.0003,30]
[314336668,1708194646109,-239.0,0.0003,2]
[314336669,1708194646118,-300.0,0.0003007,2]
[314336670,1708194646127,-264.10678063,0.00030135,4]
[314336671,1708194646136,-500.0,0.00030135,2]
[314336672,1708194646145,-3638.05,0.00030135,2]
[314336673,1708194646155,-5192.33,0.00030135,2]
[314336674,1708194646165,-1051.52,0.00030135,2]
[314336675,1708194646174,-500.0,0.00030135,2]
[314336676,1708194646184,-917.73,0.00030135,2]
[314336677,1708194646193,-500.0,0.00030135,2]
[314336678,1708194646202,-772.09,0.00030135,2]
[314336679,1708194646211,-2701.75,0.00030135,2]
[314336680,1708194646220,-546.99,0.00030135,2]
[314336681,1708194646231,-3552.4,0.00030135,2]
[314336682,1708194646240,-4818.7,0.00030135,2]
[314336683,1708194646249,-805.06,0.00030135,2]
[314336684,1708194646259,-500.0,0.00030135,2]
[314336685,1708194646268,-663.69,0.00030135,2]
[314336686,1708194646277,-500.0,0.00030135,2]
[314336687,1708194646287,-590.21,0.00030135,2]
[314336688,1708194646296,-500.27,0.00030135,2]
[314336689,1708194646305,-500.0,0.00030135,2]
[314336690,1708194646314,-500.0,0.00030136,2]
[314336691,1708194646323,-567.3,0.00030136,2]
[314336692,1708194646332,-557.12,0.00030136,2]
[314336693,1708194646341,-1014.71,0.00030136,2]
[314336694,1708194646351,-516.61,0.00030136,2]
[314336695,1708194646360,-3541.77,0.00030136,2]
[314336696,1708194646369,-2996.24,0.00030136,2]
[314336697,1708194646378,-500.0,0.00030136,2]
[314336698,1708194646388,-500.0,0.00030136,2]
[314336699,1708194646397,-500.0,0.00030136,2]
[314336700,1708194646407,-500.0,0.00030136,2]
[314336701,1708194646416,-300.0,0.0003028,2]
[314336702,1708194646426,-200.0,0.00030373,2]
[314336703,1708194646435,-500.0,0.00030409,2]
[314336704,1708194646444,-3638.05,0.00030409,2]
[314336705,1708194646453,-5192.33,0.00030409,2]
[314336706,1708194646462,-1051.52,0.00030409,2]
[314336707,1708194646471,-500.0,0.00030409,2]
[314336708,1708194646481,-917.73,0.00030409,2]
[314336709,1708194646490,-500.0,0.00030409,2]
[314336710,1708194646499,-772.09,0.00030409,2]
[314336711,1708194646508,-2701.75,0.00030409,2]
[314336712,1708194646517,-546.99,0.00030409,2]
[314336713,1708194646530,-3552.4,0.00030409,2]
[314336714,1708194646539,-4818.7,0.00030409,2]
[314336715,1708194646548,-500.0,0.00030409,2]
[314336716,1708194646557,-805.06,0.00030409,2]
[314336717,1708194646569,-663.69,0.00030409,2]
[314336718,1708194646578,-500.0,0.00030409,2]
[314336719,1708194646587,-590.21,0.00030409,2]
[314336720,1708194646598,-500.27,0.00030409,2]
[314336721,1708194646608,-500.0,0.00030409,2]
[314336722,1708194646617,-500.0,0.0003041,2]
[314336723,1708194646626,-567.3,0.0003041,2]
[314336724,1708194646635,-557.12,0.0003041,2]
[314336725,1708194646644,-745.33735677,0.0003041,2]
[314336726,1708194646659,-269.37264323,0.0003041,2]
[314336727,1708194646668,-516.61,0.0003041,2]
[314336728,1708194646751,-2805.37735677,0.0003041,2]
[314336729,1708194646763,-736.39264323,0.0003041,2]
[314336730,1708194646772,-1084.14735677,0.0003041,2]
[314336731,1708194646783,-1912.09264323,0.0003041,2]
[314336733,1708194646792,-500.0,0.0003041,2]
[314336735,1708194646801,-500.0,0.0003041,2]
[314336737,1708194646810,-500.0,0.0003041,2]
[314336739,1708194646819,-500.0,0.0003041,2]
[314336741,1708194646828,-153.0,0.00030411,2]
[314336743,1708194646837,-153.0,0.00030411,2]
[314336745,1708194646846,-153.0,0.00030411,2]
[314336746,1708194646855,-153.0,0.00030411,2]
[314336747,1708194646865,-200.230317,0.00030411,2]
[314336748,1708194646874,-399.3392311,0.00030411,2]
[314336749,1708194646883,-300.0,0.0003049,2]
[314336750,1708194646892,-1898.15302573,0.00030497,15]
[314336752,1708194646902,-284.99205965,0.00030573,2]
[314336754,1708194646911,-155.00930056,0.00030682,4]
[314336756,1708194646921,-160.24275126,0.00030683,3]
[314336757,1708194646930,-326.94939536,0.00030683,4]
[314336759,1708194646939,-198.8108005,0.00030683,4]
[314336761,1708194646948,-642.98112133,0.00030683,4]
[314336763,1708194646986,-500.0,0.00027669,2]
[314336765,1708194646995,-370.34453621,0.00027943,2]
[314336803,1708195831908,-286.39335264,0.00024297,2]
[314336805,1708195831920,-154.98450155,0.00024309,2]
[314336806,1708195831929,-504.44257403,0.00024338,2]
[314336856,1708195837938,-154.98450155,0.00024296,2]
[314336857,1708195837949,-1173.0008824,0.00024338,2]
[314336858,1708195837958,-250.0,0.00025426,2]
[314336859,1708195837968,-373.7309928,0.00025516,2]
[314336860,1708195837977,-167.0894354,0.00025698,2]
[314336861,1708195837986,-790.00004807,0.00026851,3]
[314336863,1708195837995,-493.00244291,0.00027669,2]
[314336864,1708195838003,-923.37,0.00027669,2]
[314336865,1708195838012,-500.0,0.00027669,2]
[314336866,1708195838022,-500.0,0.00027669,2]
[314336867,1708195838031,-500.0,0.00027669,2]
[314336868,1708195838040,-500.0,0.00027669,2]
[314336869,1708195838049,-295.36967243,0.00027669,2]
[314336870,1708195838059,-561.44,0.00027669,2]
[314336871,1708195838067,-559.03,0.00027669,2]
[314336872,1708195838076,-500.0,0.00027669,2]
[314336873,1708195838085,-562.38075067,0.00027669,2]
[314336874,1708195838094,-500.0,0.00027669,2]
[314336875,1708195838104,-500.0,0.00027669,2]
[314336876,1708195838113,-500.0,0.00027669,2]
[314336877,1708195838122,-1486.52,0.00027676,3]
[314336878,1708195838131,-2834.69,0.00027676,3]
[314336879,1708195838140,-2362.24,0.00027676,3]
[314336880,1708195838149,-1968.54,0.00027676,3]
[314336881,1708195838158,-1640.45,0.00027676,3]
[314336882,1708195838167,-500.0,0.00027684,2]
[314336883,1708195838176,-500.0,0.00027684,2]
[314336884,1708195838185,-500.0,0.00027684,2]
[314336885,1708195838194,-500.0,0.00027684,2]
[314336886,1708195838203,-1000.0,0.00027684,2]
[314336887,1708195838213,-500.0,0.00027685,2]
[314336888,1708195838222,-500.0,0.00027685,2]
[314336889,1708195838231,-500.0,0.00027685,2]
[314336890,1708195838240,-500.0,0.00027685,2]
[314336891,1708195838249,-500.0,0.00027685,2]
[314336892,1708195838259,-3199.95,0.00027685,2]
[314336893,1708195838268,-4660.69,0.00027685,2]
[314336894,1708195838277,-500.0,0.00027685,2]
[314336895,1708195838286,-500.0,0.00027685,2]
[314336896,1708195838295,-500.0,0.00027685,2]
[314336897,1708195838304,-635.23390049,0.00027685,2]
[314336898,1708195838313,-500.0,0.00027685,2]
[314336899,1708195838322,-500.0,0.00027685,2]
[314336900,1708195838332,-500.0,0.00027685,2]
[314336901,1708195838341,-915.37,0.00027685,2]
[314336902,1708195838350,-500.0,0.00027685,2]
[314336903,1708195838359,-868.5,0.00027685,2]
[314336904,1708195838368,-2541.44,0.00027685,2]
[314336905,1708195838377,-2852.6,0.00027685,2]
[314336906,1708195838386,-4194.72,0.00027685,2]
[314336907,1708195838395,-751.21,0.00027685,2]
[314336908,1708195838405,-500.0,0.00027685,2]
[314336909,1708195838414,-500.0,0.00027685,2]
[314336910,1708195838423,-529.36,0.00027685,2]
[314336911,1708195838432,-500.0,0.00027685,2]
[314336912,1708195838441,-500.0,0.00027685,2]
[314336913,1708195838451,-508.37,0.00027685,2]
[314336914,1708195838461,-672.12,0.00027685,2]
[314336915,1708195838470,-583.77,0.00027685,2]
[314336916,1708195838479,-513.06,0.00027685,2]
[314336917,1708195838488,-500.0,0.00027685,2]
[314336918,1708195838497,-29680.33152701,0.00027686,5]
[314336919,1708195838506,-160.88802508,0.00027842,2]
[314336920,1708195838515,-3419.42,0.00027942,2]
[314336921,1708195838524,-2858.77,0.00027942,2]
[314336922,1708195838533,-500.0,0.00027942,2]
[314336923,1708195838542,-500.0,0.00027942,2]
[314336924,1708195838551,-923.37,0.00027943,2]
[314336925,1708195838560,-500.0,0.00027943,2]
[314336926,1708195838569,-500.0,0.00027943,2]
[314336927,1708195838578,-500.0,0.00027943,2]
[314336928,1708195838588,-500.0,0.00027943,2]
[314336929,1708195838597,-561.44,0.00027943,2]
[314336930,1708195838607,-559.03,0.00027943,2]
[314336931,1708195838616,-500.0,0.00027943,2]
[314336932,1708195838626,-500.0,0.00027943,2]
[314336933,1708195838635,-500.0,0.00027943,2]
[314336934,1708195838644,-500.0,0.00027943,2]
[314336935,1708195838654,-500.0,0.00027958,2]
[314336936,1708195838664,-500.0,0.00027958,2]
[314336937,1708195838674,-500.0,0.00027958,2]
[314336938,1708195838683,-500.0,0.00027958,2]
[314336939,1708195838692,-1000.0,0.00027958,2]
[314336940,1708195838701,-321.58043892,0.00027958,2]
[314336941,1708195838712,-500.0,0.00027959,2]
[314336942,1708195838720,-500.0,0.00027959,2]
[314336943,1708195838730,-500.0,0.00027959,2]
[314336944,1708195838739,-500.0,0.00027959,2]
[314336945,1708195838748,-500.0,0.00027959,2]
[314336946,1708195838757,-3199.95,0.00027959,2]
[314336947,1708195838766,-4660.69,0.00027959,2]
[314336948,1708195838775,-500.0,0.00027959,2]
[314336949,1708195838785,-500.0,0.00027959,2]
[314336950,1708195838795,-500.0,0.00027959,2]
[314336951,1708195838804,-500.0,0.00027959,2]
[314336952,1708195838812,-500.0,0.00027959,2]
[314336953,1708195838821,-915.37,0.00027959,2]
[314336954,1708195838830,-500.0,0.00027959,2]
[314336955,1708195838839,-868.5,0.00027959,2]
[314336956,1708195838848,-2541.44,0.00027959,2]
[314336957,1708195838858,-2852.6,0.00027959,2]
[314336958,1708195838868,-4194.72,0.00027959,2]
[314336959,1708195838880,-751.21,0.00027959,2]
[314336960,1708195838889,-500.0,0.00027959,2]
[314336961,1708195838898,-500.0,0.00027959,2]
[314336962,1708195838907,-529.36,0.00027959,2]
[314336963,1708195838917,-500.0,0.00027959,2]
[314336964,1708195838926,-500.0,0.00027959,2]
[314336965,1708195838935,-508.37,0.00027959,2]